Workbook

Sheet 附表七
A1: 附表7：
A2: 2023年末江门市政府债务限额预测数
J3: 单位：亿元
A4: 项 目 | B4: 全市 | C4: 市本级 | D4: 蓬江区 | E4: 江海区 | F4: 新会区 | G4: 台山市 | H4: 开平市 | I4: 鹤山市 | J4: 恩平市
A5: 一、2022年债务限额 | B5: =B6+B7 -> 928.47 | C5: =SUM(C6:C7) -> 166.02 | D5: =SUM(D6:D7) -> 116.28 | E5: 58.63 | F5: 209.69 | G5: 131.67 | H5: 111.23 | I5: 93.06 | J5: 41.89
A6: （1）一般债务限额 | B6: 342.06 | C6: 86.86 | D6: 25.18 | E6: 6.83 | F6: 107.78 | G6: 26.02 | H6: 53.28 | I6: 22.48 | J6: 13.64
A7: （2）专项债务限额 | B7: 586.41 | C7: 79.16 | D7: 91.10 | E7: 51.80 | F7: 101.91 | G7: 105.65 | H7: 57.95 | I7: 70.58 | J7: 28.25
A8: 二、2023年新增债券额度 | B8: =SUM(B9:B10) -> 189.40 | C8: =SUM(C9:C10) -> 5.70 | D8: =SUM(D9:D10) -> 28.00 | E8: 28.00 | F8: 37.50 | G8: 30.95 | H8: 20.15 | I8: 24.50 | J8: 14.60
A9: （1）一般债务额度 | B9: 1.40 | C9: 0.00 | D9: 0.00 | E9: 0.00 | F9: 0.00 | G9: 0.45 | H9: 0.35 | I9: 0.00 | J9: 0.60
A10: （2）专项债务额度 | B10: 188.00 | C10: 5.70 | D10: 28.00 | E10: 28.00 | F10: 37.50 | G10: 30.50 | H10: 19.80 | I10: 24.50 | J10: 14.00
A11: 三、2023年末债务限额预测值 （三=一+二） | B11: =B5+B8 -> 1,117.87 | C11: 171.72 | D11: 144.28 | E11: 86.63 | F11: 247.19 | G11: 162.62 | H11: 131.38 | I11: 117.56 | J11: 56.49
A12: （1）一般债务限额 | B12: 343.46 | C12: 86.86 | D12: =D6+D9 -> 25.18 | E12: =E6+E9 -> 6.83 | F12: 107.78 | G12: 26.47 | H12: 53.63 | I12: 22.48 | J12: 14.24
A13: （2）专项债务限额 | B13: 774.41 | C13: 84.86 | D13: =D7+D10 -> 119.10 | E13: =E7+E10 -> 79.80 | F13: 139.41 | G13: 136.15 | H13: 77.75 | I13: 95.08 | J13: 42.25
A14: 备注：1.本预测数据是以2023年8月8日时点掌握的数据进行的预测； 2.本预测数据未考虑后续新增债券额度下达、政府债务限额回收等情况。
